{"text_format":"1","workbook":"xlsx","n_sheets":3,"sheets":["Лист1","Результат","ВспомогательныйЛист"],"not_rendered":{"charts":0,"images":4,"macros":1,"external_links":0,"defined_names":3,"comments":0,"pivot_tables":0},"unopened":[],"bounds":{"document_bytes":16777216,"sheet_cells":100000,"rows_first":2000,"rows_last":500,"rows_between":2000,"halvings":0,"cell_chars":16384,"cell_head_chars":4096},"cells_cut":0,"cells_raw":0,"read":"whole","date_system":"1900"}

{"sheet":"Лист1","index":0,"n_rows":54,"n_cols":6,"rows_kept":54,"cut":false,"hidden":false,"merged":[]}
["Фамилия","Имя","Отчество","1","причина","2"]
["Фамилия1","Имя1","Отчество1",null,"отпуск","упр."]
["Фамилия2","Имя2","Отчество2",null,"командировка","упр."]
["Фамилия3","Имя3","Отчество3",null,null,"упр."]
["Фамилия4","Имя4","Отчество4",null,"отпуск","упр."]
["Фамилия5","Имя5","Отчество5",null,null,"упр."]
["Фамилия6","Имя6","Отчество6",null,"отпуск","упр."]
["Фамилия7","Имя7","Отчество7",null,null,"упр."]
["Фамилия8","Имя8","Отчество8",null,null,"упр."]
["Фамилия9","Имя9","Отчество9",null,null,"упр."]
["Фамилия10","Имя10","Отчество10",null,null,"упр."]
["Фамилия11","Имя11","Отчество11",null,null,"упр."]
["Фамилия12","Имя12","Отчество12",null,null,"упр."]
["Фамилия13","Имя13","Отчество13",null,null,"упр."]
["Фамилия14","Имя14","Отчество14",null,"отпуск","упр."]
["Фамилия15","Имя15","Отчество15",null,null,"упр."]
["Фамилия16","Имя16","Отчество16",null,null,"упр."]
["Фамилия17","Имя17","Отчество17",null,null,"упр."]
["Фамилия18","Имя18","Отчество18","к/с",null,"упр."]
["Фамилия19","Имя19","Отчество19",null,null,"упр."]
["Фамилия20","Имя20","Отчество20",null,"отпуск","упр."]
["Фамилия21","Имя21","Отчество21","к/с",null,"упр."]
["Фамилия22","Имя22","Отчество22","к/с",null,"упр."]
["Фамилия23","Имя23","Отчество23",null,"отпуск","упр."]
["Фамилия24","Имя24","Отчество24",null,null,"упр."]
["Фамилия25","Имя25","Отчество25",null,null,"упр."]
["Фамилия26","Имя26","Отчество26",null,null,"упр."]
["Фамилия27","Имя27","Отчество27",null,null,"упр."]
["Фамилия28","Имя28","Отчество28",null,null,"упр."]
["Фамилия29","Имя29","Отчество29",null,null,"упр."]
["Фамилия30","Имя30","Отчество30","к/с",null,"упр."]
["Фамилия31","Имя31","Отчество31","к/с",null,"упр."]
["Фамилия32","Имя32","Отчество32",null,null,"упр."]
["Фамилия33","Имя33","Отчество33",null,null,"упр."]
["Фамилия34","Имя34","Отчество34",null,null,"упр."]
["Фамилия35","Имя35","Отчество35",null,null,"упр."]
["Фамилия36","Имя36","Отчество36",null,null,"упр."]
["Фамилия37","Имя37","Отчество37",null,null,"упр."]
["Фамилия38","Имя38","Отчество38",null,null,"упр."]
["Фамилия39","Имя39","Отчество39",null,null,"упр."]
["Фамилия40","Имя40","Отчество40",null,null,"упр."]
["Фамилия41","Имя41","Отчество41","вакант",null,"упр."]
["Фамилия42","Имя42","Отчество42",null,null,"упр."]
["Фамилия43","Имя43","Отчество43",null,null,"упр."]
["Фамилия44","Имя44","Отчество44",null,null,"упр."]
["Фамилия45","Имя45","Отчество45",null,null,"упр."]
["Фамилия46","Имя46","Отчество46",null,null,"упр."]
["Фамилия47","Имя47","Отчество47",null,null,"упр."]
["Фамилия48","Имя48","Отчество48",null,null,"упр."]
["Фамилия49","Имя49","Отчество49",null,null,"упр."]
["Фамилия50","Имя50","Отчество50",null,"командировка","упр."]
["Фамилия51","Имя51","Отчество51",null,null,"упр."]
["Фамилия52","Имя52","Отчество52",null,null,"упр."]
["Фамилия53","Имя53","Отчество53",null,null,"упр."]

{"sheet":"Результат","index":1,"n_rows":0,"n_cols":0,"rows_kept":0,"cut":false,"hidden":false,"merged":[]}

{"sheet":"ВспомогательныйЛист","index":2,"n_rows":407,"n_cols":10,"rows_kept":407,"cut":false,"hidden":false,"merged":[]}
[{"$f":"IF(B1<>\"\",ROW()&\".\",\"\")","v":"1."},{"$f":"IFERROR(IF($G$1<>\"\",INDEX(Лист1!A$1:A$210,SMALL(IF(Лист1!$E$1:$E$210=$G$1,ROW(Лист1!A$1:A$210)),ROW(A1))),INDEX(Лист1!A$1:A$210,MATCH(ROW(J1),$J$1:$J$210,)+1)),\"\")","v":"Фамилия1"},{"$f":"IFERROR(IF($G$1<>\"\",INDEX(Лист1!B$1:B$210,SMALL(IF(Лист1!$E$1:$E$210=$G$1,ROW(Лист1!B$1:B$210)),ROW(B1))),INDEX(Лист1!B$1:B$210,MATCH(ROW(K1),$J$1:$J$210,)+1)),\"\")","v":"Имя1"},{"$f":"IFERROR(IF($G$1<>\"\",INDEX(Лист1!C$1:C$210,SMALL(IF(Лист1!$E$1:$E$210=$G$1,ROW(Лист1!C$1:C$210)),ROW(C1))),INDEX(Лист1!C$1:C$210,MATCH(ROW(L1),$J$1:$J$210,)+1)),\"\")","v":"Отчество1"},{"$f":"IFERROR(IF($G$1<>\"\",INDEX(Лист1!E$1:E$210,SMALL(IF(Лист1!$E$1:$E$210=$G$1,ROW(Лист1!D$1:D$210)),ROW(D1))),INDEX(Лист1!E$1:E$210,MATCH(ROW(M1),$J$1:$J$210,)+1)),\"\")","v":"отпуск"},"Выбор",null,null,null,{"$f":"SUBTOTAL(3,Лист1!$A$2:$A2)","v":1}]
[{"$f":"IF(B2<>\"\",ROW()&\".\",\"\")","v":"2."},{"$f":"IFERROR(IF($G$1<>\"\",INDEX(Лист1!A$1:A$210,SMALL(IF(Лист1!$E$1:$E$210=$G$1,ROW(Лист1!A$1:A$210)),ROW(A2))),INDEX(Лист1!A$1:A$210,MATCH(ROW(J2),$J$1:$J$210,)+1)),\"\")","v":"Фамилия2"},{"$f":"IFERROR(IF($G$1<>\"\",INDEX(Лист1!B$1:B$210,SMALL(IF(Лист1!$E$1:$E$210=$G$1,ROW(Лист1!B$1:B$210)),ROW(B2))),INDEX(Лист1!B$1:B$210,MATCH(ROW(K2),$J$1:$J$210,)+1)),\"\")","v":"Имя2"},{"$f":"IFERROR(IF($G$1<>\"\",INDEX(Лист1!C$1:C$210,SMALL(IF(Лист1!$E$1:$E$210=$G$1,ROW(Лист1!C$1:C$210)),ROW(C2))),INDEX(Лист1!C$1:C$210,MATCH(ROW(L2),$J$1:$J$210,)+1)),\"\")","v":"Отчество2"},{"$f":"IFERROR(IF($G$1<>\"\",INDEX(Лист1!E$1:E$210,SMALL(IF(Лист1!$E$1:$E$210=$G$1,ROW(Лист1!D$1:D$210)),ROW(D2))),INDEX(Лист1!E$1:E$210,MATCH(ROW(M2),$J$1:$J$210,)+1)),\"\")","v":"командировка"},null,null,null,{"$f":"IFERROR(INDEX(Лист1!$E$2:$E$100,MATCH(1,INDEX((COUNTIF(I$1:I1,Лист1!$E$2:$E$100)=0)*(Лист1!$E$2:$E$100<>\"\"),0),0)),\"\")","v":"отпуск"},{"$f":"SUBTOTAL(3,Лист1!$A$2:$A3)","v":2}]
["3.",{"$f":"IFERROR(IF($G$1<>\"\",INDEX(Лист1!A$1:A$210,SMALL(IF(Лист1!$E$1:$E$210=$G$1,ROW(Лист1!A$1:A$210)),ROW(A3))),INDEX(Лист1!A$1:A$210,MATCH(ROW(J3),$J$1:$J$210,)+1)),\"\")","v":"Фамилия4"},{"$f":"IFERROR(IF($G$1<>\"\",INDEX(Лист1!B$1:B$210,SMALL(IF(Лист1!$E$1:$E$210=$G$1,ROW(Лист1!B$1:B$210)),ROW(B3))),INDEX(Лист1!B$1:B$210,MATCH(ROW(K3),$J$1:$J$210,)+1)),\"\")","v":"Имя4"},{"$f":"IFERROR(IF($G$1<>\"\",INDEX(Лист1!C$1:C$210,SMALL(IF(Лист1!$E$1:$E$210=$G$1,ROW(Лист1!C$1:C$210)),ROW(C3))),INDEX(Лист1!C$1:C$210,MATCH(ROW(L3),$J$1:$J$210,)+1)),\"\")","v":"Отчество4"},{"$f":"IFERROR(IF($G$1<>\"\",INDEX(Лист1!E$1:E$210,SMALL(IF(Лист1!$E$1:$E$210=$G$1,ROW(Лист1!D$1:D$210)),ROW(D3))),INDEX(Лист1!E$1:E$210,MATCH(ROW(M3),$J$1:$J$210,)+1)),\"\")","v":"отпуск"},"Если в ячейке G1 пусто, то список формируется по фильтру любого столбца на Лист1",null,null,{"$f":"IFERROR(INDEX(Лист1!$E$2:$E$100,MATCH(1,INDEX((COUNTIF(I$1:I2,Лист1!$E$2:$E$100)=0)*(Лист1!$E$2:$E$100<>\"\"),0),0)),\"\")","v":"командировка"},{"$f":"SUBTOTAL(3,Лист1!$A$2:$A4)","v":2}]
["4.",{"$f":"IFERROR(IF($G$1<>\"\",INDEX(Лист1!A$1:A$210,SMALL(IF(Лист1!$E$1:$E$210=$G$1,ROW(Лист1!A$1:A$210)),ROW(A4))),INDEX(Лист1!A$1:A$210,MATCH(ROW(J4),$J$1:$J$210,)+1)),\"\")","v":"Фамилия6"},{"$f":"IFERROR(IF($G$1<>\"\",INDEX(Лист1!B$1:B$210,SMALL(IF(Лист1!$E$1:$E$210=$G$1,ROW(Лист1!B$1:B$210)),ROW(B4))),INDEX(Лист1!B$1:B$210,MATCH(ROW(K4),$J$1:$J$210,)+1)),\"\")","v":"Имя6"},{"$f":"IFERROR(IF($G$1<>\"\",INDEX(Лист1!C$1:C$210,SMALL(IF(Лист1!$E$1:$E$210=$G$1,ROW(Лист1!C$1:C$210)),ROW(C4))),INDEX(Лист1!C$1:C$210,MATCH(ROW(L4),$J$1:$J$210,)+1)),\"\")","v":"Отчество6"},{"$f":"IFERROR(IF($G$1<>\"\",INDEX(Лист1!E$1:E$210,SMALL(IF(Лист1!$E$1:$E$210=$G$1,ROW(Лист1!D$1:D$210)),ROW(D4))),INDEX(Лист1!E$1:E$210,MATCH(ROW(M4),$J$1:$J$210,)+1)),\"\")","v":"отпуск"},"Если в ячейке G1 чтото прописано, то список формируется по этому выбору (значению ячейки G1)",null,null,{"$f":"IFERROR(INDEX(Лист1!$E$2:$E$100,MATCH(1,INDEX((COUNTIF(I$1:I3,Лист1!$E$2:$E$100)=0)*(Лист1!$E$2:$E$100<>\"\"),0),0)),\"\")","v":""},{"$f":"SUBTOTAL(3,Лист1!$A$2:$A5)","v":3}]
["5.",{"$f":"IFERROR(IF($G$1<>\"\",INDEX(Лист1!A$1:A$210,SMALL(IF(Лист1!$E$1:$E$210=$G$1,ROW(Лист1!A$1:A$210)),ROW(A5))),INDEX(Лист1!A$1:A$210,MATCH(ROW(J5),$J$1:$J$210,)+1)),\"\")","v":"Фамилия14"},{"$f":"IFERROR(IF($G$1<>\"\",INDEX(Лист1!B$1:B$210,SMALL(IF(Лист1!$E$1:$E$210=$G$1,ROW(Лист1!B$1:B$210)),ROW(B5))),INDEX(Лист1!B$1:B$210,MATCH(ROW(K5),$J$1:$J$210,)+1)),\"\")","v":"Имя14"},{"$f":"IFERROR(IF($G$1<>\"\",INDEX(Лист1!C$1:C$210,SMALL(IF(Лист1!$E$1:$E$210=$G$1,ROW(Лист1!C$1:C$210)),ROW(C5))),INDEX(Лист1!C$1:C$210,MATCH(ROW(L5),$J$1:$J$210,)+1)),\"\")","v":"Отчество14"},{"$f":"IFERROR(IF($G$1<>\"\",INDEX(Лист1!E$1:E$210,SMALL(IF(Лист1!$E$1:$E$210=$G$1,ROW(Лист1!D$1:D$210)),ROW(D5))),INDEX(Лист1!E$1:E$210,MATCH(ROW(M5),$J$1:$J$210,)+1)),\"\")","v":"отпуск"},"Результат можно посмотреть на листах Результат и Лист1",null,null,{"$f":"IFERROR(INDEX(Лист1!$E$2:$E$100,MATCH(1,INDEX((COUNTIF(I$1:I4,Лист1!$E$2:$E$100)=0)*(Лист1!$E$2:$E$100<>\"\"),0),0)),\"\")","v":""},{"$f":"SUBTOTAL(3,Лист1!$A$2:$A6)","v":3}]
["6.",{"$f":"IFERROR(IF($G$1<>\"\",INDEX(Лист1!A$1:A$210,SMALL(IF(Лист1!$E$1:$E$210=$G$1,ROW(Лист1!A$1:A$210)),ROW(A6))),INDEX(Лист1!A$1:A$210,MATCH(ROW(J6),$J$1:$J$210,)+1)),\"\")","v":"Фамилия20"},{"$f":"IFERROR(IF($G$1<>\"\",INDEX(Лист1!B$1:B$210,SMALL(IF(Лист1!$E$1:$E$210=$G$1,ROW(Лист1!B$1:B$210)),ROW(B6))),INDEX(Лист1!B$1:B$210,MATCH(ROW(K6),$J$1:$J$210,)+1)),\"\")","v":"Имя20"},{"$f":"IFERROR(IF($G$1<>\"\",INDEX(Лист1!C$1:C$210,SMALL(IF(Лист1!$E$1:$E$210=$G$1,ROW(Лист1!C$1:C$210)),ROW(C6))),INDEX(Лист1!C$1:C$210,MATCH(ROW(L6),$J$1:$J$210,)+1)),\"\")","v":"Отчество20"},{"$f":"IFERROR(IF($G$1<>\"\",INDEX(Лист1!E$1:E$210,SMALL(IF(Лист1!$E$1:$E$210=$G$1,ROW(Лист1!D$1:D$210)),ROW(D6))),INDEX(Лист1!E$1:E$210,MATCH(ROW(M6),$J$1:$J$210,)+1)),\"\")","v":"отпуск"},"На листе Результат один из списков изменяет размеры в зависимости от количества строк (макрос).",null,null,{"$f":"IFERROR(INDEX(Лист1!$E$2:$E$100,MATCH(1,INDEX((COUNTIF(I$1:I5,Лист1!$E$2:$E$100)=0)*(Лист1!$E$2:$E$100<>\"\"),0),0)),\"\")","v":""},{"$f":"SUBTOTAL(3,Лист1!$A$2:$A7)","v":4}]
["7.",{"$f":"IFERROR(IF($G$1<>\"\",INDEX(Лист1!A$1:A$210,SMALL(IF(Лист1!$E$1:$E$210=$G$1,ROW(Лист1!A$1:A$210)),ROW(A7))),INDEX(Лист1!A$1:A$210,MATCH(ROW(J7),$J$1:$J$210,)+1)),\"\")","v":"Фамилия23"},{"$f":"IFERROR(IF($G$1<>\"\",INDEX(Лист1!B$1:B$210,SMALL(IF(Лист1!$E$1:$E$210=$G$1,ROW(Лист1!B$1:B$210)),ROW(B7))),INDEX(Лист1!B$1:B$210,MATCH(ROW(K7),$J$1:$J$210,)+1)),\"\")","v":"Имя23"},{"$f":"IFERROR(IF($G$1<>\"\",INDEX(Лист1!C$1:C$210,SMALL(IF(Лист1!$E$1:$E$210=$G$1,ROW(Лист1!C$1:C$210)),ROW(C7))),INDEX(Лист1!C$1:C$210,MATCH(ROW(L7),$J$1:$J$210,)+1)),\"\")","v":"Отчество23"},{"$f":"IFERROR(IF($G$1<>\"\",INDEX(Лист1!E$1:E$210,SMALL(IF(Лист1!$E$1:$E$210=$G$1,ROW(Лист1!D$1:D$210)),ROW(D7))),INDEX(Лист1!E$1:E$210,MATCH(ROW(M7),$J$1:$J$210,)+1)),\"\")","v":"отпуск"},"Выберите нужный вариант, ненужный удалите.",null,null,{"$f":"IFERROR(INDEX(Лист1!$E$2:$E$100,MATCH(1,INDEX((COUNTIF(I$1:I6,Лист1!$E$2:$E$100)=0)*(Лист1!$E$2:$E$100<>\"\"),0),0)),\"\")","v":""},{"$f":"SUBTOTAL(3,Лист1!$A$2:$A8)","v":4}]
["8.",{"$f":"IFERROR(IF($G$1<>\"\",INDEX(Лист1!A$1:A$210,SMALL(IF(Лист1!$E$1:$E$210=$G$1,ROW(Лист1!A$1:A$210)),ROW(A8))),INDEX(Лист1!A$1:A$210,MATCH(ROW(J8),$J$1:$J$210,)+1)),\"\")","v":"Фамилия50"},{"$f":"IFERROR(IF($G$1<>\"\",INDEX(Лист1!B$1:B$210,SMALL(IF(Лист1!$E$1:$E$210=$G$1,ROW(Лист1!B$1:B$210)),ROW(B8))),INDEX(Лист1!B$1:B$210,MATCH(ROW(K8),$J$1:$J$210,)+1)),\"\")","v":"Имя50"},{"$f":"IFERROR(IF($G$1<>\"\",INDEX(Лист1!C$1:C$210,SMALL(IF(Лист1!$E$1:$E$210=$G$1,ROW(Лист1!C$1:C$210)),ROW(C8))),INDEX(Лист1!C$1:C$210,MATCH(ROW(L8),$J$1:$J$210,)+1)),\"\")","v":"Отчество50"},{"$f":"IFERROR(IF($G$1<>\"\",INDEX(Лист1!E$1:E$210,SMALL(IF(Лист1!$E$1:$E$210=$G$1,ROW(Лист1!D$1:D$210)),ROW(D8))),INDEX(Лист1!E$1:E$210,MATCH(ROW(M8),$J$1:$J$210,)+1)),\"\")","v":"командировка"},null,null,null,{"$f":"IFERROR(INDEX(Лист1!$E$2:$E$100,MATCH(1,INDEX((COUNTIF(I$1:I7,Лист1!$E$2:$E$100)=0)*(Лист1!$E$2:$E$100<>\"\"),0),0)),\"\")","v":""},{"$f":"SUBTOTAL(3,Лист1!$A$2:$A9)","v":4}]
["",{"$f":"IFERROR(IF($G$1<>\"\",INDEX(Лист1!A$1:A$210,SMALL(IF(Лист1!$E$1:$E$210=$G$1,ROW(Лист1!A$1:A$210)),ROW(A9))),INDEX(Лист1!A$1:A$210,MATCH(ROW(J9),$J$1:$J$210,)+1)),\"\")","v":""},{"$f":"IFERROR(IF($G$1<>\"\",INDEX(Лист1!B$1:B$210,SMALL(IF(Лист1!$E$1:$E$210=$G$1,ROW(Лист1!B$1:B$210)),ROW(B9))),INDEX(Лист1!B$1:B$210,MATCH(ROW(K9),$J$1:$J$210,)+1)),\"\")","v":""},{"$f":"IFERROR(IF($G$1<>\"\",INDEX(Лист1!C$1:C$210,SMALL(IF(Лист1!$E$1:$E$210=$G$1,ROW(Лист1!C$1:C$210)),ROW(C9))),INDEX(Лист1!C$1:C$210,MATCH(ROW(L9),$J$1:$J$210,)+1)),\"\")","v":""},{"$f":"IFERROR(IF($G$1<>\"\",INDEX(Лист1!E$1:E$210,SMALL(IF(Лист1!$E$1:$E$210=$G$1,ROW(Лист1!D$1:D$210)),ROW(D9))),INDEX(Лист1!E$1:E$210,MATCH(ROW(M9),$J$1:$J$210,)+1)),\"\")","v":""},null,null,null,{"$f":"IFERROR(INDEX(Лист1!$E$2:$E$100,MATCH(1,INDEX((COUNTIF(I$1:I8,Лист1!$E$2:$E$100)=0)*(Лист1!$E$2:$E$100<>\"\"),0),0)),\"\")","v":""},{"$f":"SUBTOTAL(3,Лист1!$A$2:$A10)","v":4}]
["",{"$f":"IFERROR(IF($G$1<>\"\",INDEX(Лист1!A$1:A$210,SMALL(IF(Лист1!$E$1:$E$210=$G$1,ROW(Лист1!A$1:A$210)),ROW(A10))),INDEX(Лист1!A$1:A$210,MATCH(ROW(J10),$J$1:$J$210,)+1)),\"\")","v":""},{"$f":"IFERROR(IF($G$1<>\"\",INDEX(Лист1!B$1:B$210,SMALL(IF(Лист1!$E$1:$E$210=$G$1,ROW(Лист1!B$1:B$210)),ROW(B10))),INDEX(Лист1!B$1:B$210,MATCH(ROW(K10),$J$1:$J$210,)+1)),\"\")","v":""},{"$f":"IFERROR(IF($G$1<>\"\",INDEX(Лист1!C$1:C$210,SMALL(IF(Лист1!$E$1:$E$210=$G$1,ROW(Лист1!C$1:C$210)),ROW(C10))),INDEX(Лист1!C$1:C$210,MATCH(ROW(L10),$J$1:$J$210,)+1)),\"\")","v":""},{"$f":"IFERROR(IF($G$1<>\"\",INDEX(Лист1!E$1:E$210,SMALL(IF(Лист1!$E$1:$E$210=$G$1,ROW(Лист1!D$1:D$210)),ROW(D10))),INDEX(Лист1!E$1:E$210,MATCH(ROW(M10),$J$1:$J$210,)+1)),\"\")","v":""},null,null,null,{"$f":"IFERROR(INDEX(Лист1!$E$2:$E$100,MATCH(1,INDEX((COUNTIF(I$1:I9,Лист1!$E$2:$E$100)=0)*(Лист1!$E$2:$E$100<>\"\"),0),0)),\"\")","v":""},{"$f":"SUBTOTAL(3,Лист1!$A$2:$A11)","v":4}]
["",{"$f":"IFERROR(IF($G$1<>\"\",INDEX(Лист1!A$1:A$210,SMALL(IF(Лист1!$E$1:$E$210=$G$1,ROW(Лист1!A$1:A$210)),ROW(A11))),INDEX(Лист1!A$1:A$210,MATCH(ROW(J11),$J$1:$J$210,)+1)),\"\")","v":""},{"$f":"IFERROR(IF($G$1<>\"\",INDEX(Лист1!B$1:B$210,SMALL(IF(Лист1!$E$1:$E$210=$G$1,ROW(Лист1!B$1:B$210)),ROW(B11))),INDEX(Лист1!B$1:B$210,MATCH(ROW(K11),$J$1:$J$210,)+1)),\"\")","v":""},{"$f":"IFERROR(IF($G$1<>\"\",INDEX(Лист1!C$1:C$210,SMALL(IF(Лист1!$E$1:$E$210=$G$1,ROW(Лист1!C$1:C$210)),ROW(C11))),INDEX(Лист1!C$1:C$210,MATCH(ROW(L11),$J$1:$J$210,)+1)),\"\")","v":""},{"$f":"IFERROR(IF($G$1<>\"\",INDEX(Лист1!E$1:E$210,SMALL(IF(Лист1!$E$1:$E$210=$G$1,ROW(Лист1!D$1:D$210)),ROW(D11))),INDEX(Лист1!E$1:E$210,MATCH(ROW(M11),$J$1:$J$210,)+1)),\"\")","v":""},null,null,null,{"$f":"IFERROR(INDEX(Лист1!$E$2:$E$100,MATCH(1,INDEX((COUNTIF(I$1:I10,Лист1!$E$2:$E$100)=0)*(Лист1!$E$2:$E$100<>\"\"),0),0)),\"\")","v":""},{"$f":"SUBTOTAL(3,Лист1!$A$2:$A12)","v":4}]
["",{"$f":"IFERROR(IF($G$1<>\"\",INDEX(Лист1!A$1:A$210,SMALL(IF(Лист1!$E$1:$E$210=$G$1,ROW(Лист1!A$1:A$210)),ROW(A12))),INDEX(Лист1!A$1:A$210,MATCH(ROW(J12),$J$1:$J$210,)+1)),\"\")","v":""},{"$f":"IFERROR(IF($G$1<>\"\",INDEX(Лист1!B$1:B$210,SMALL(IF(Лист1!$E$1:$E$210=$G$1,ROW(Лист1!B$1:B$210)),ROW(B12))),INDEX(Лист1!B$1:B$210,MATCH(ROW(K12),$J$1:$J$210,)+1)),\"\")","v":""},{"$f":"IFERROR(IF($G$1<>\"\",INDEX(Лист1!C$1:C$210,SMALL(IF(Лист1!$E$1:$E$210=$G$1,ROW(Лист1!C$1:C$210)),ROW(C12))),INDEX(Лист1!C$1:C$210,MATCH(ROW(L12),$J$1:$J$210,)+1)),\"\")","v":""},{"$f":"IFERROR(IF($G$1<>\"\",INDEX(Лист1!E$1:E$210,SMALL(IF(Лист1!$E$1:$E$210=$G$1,ROW(Лист1!D$1:D$210)),ROW(D12))),INDEX(Лист1!E$1:E$210,MATCH(ROW(M12),$J$1:$J$210,)+1)),\"\")","v":""},null,null,null,{"$f":"IFERROR(INDEX(Лист1!$E$2:$E$100,MATCH(1,INDEX((COUNTIF(I$1:I11,Лист1!$E$2:$E$100)=0)*(Лист1!$E$2:$E$100<>\"\"),0),0)),\"\")","v":""},{"$f":"SUBTOTAL(3,Лист1!$A$2:$A13)","v":4}]
["",{"$f":"IFERROR(IF($G$1<>\"\",INDEX(Лист1!A$1:A$210,SMALL(IF(Лист1!$E$1:$E$210=$G$1,ROW(Лист1!A$1:A$210)),ROW(A13))),INDEX(Лист1!A$1:A$210,MATCH(ROW(J13),$J$1:$J$210,)+1)),\"\")","v":""},{"$f":"IFERROR(IF($G$1<>\"\",INDEX(Лист1!B$1:B$210,SMALL(IF(Лист1!$E$1:$E$210=$G$1,ROW(Лист1!B$1:B$210)),ROW(B13))),INDEX(Лист1!B$1:B$210,MATCH(ROW(K13),$J$1:$J$210,)+1)),\"\")","v":""},{"$f":"IFERROR(IF($G$1<>\"\",INDEX(Лист1!C$1:C$210,SMALL(IF(Лист1!$E$1:$E$210=$G$1,ROW(Лист1!C$1:C$210)),ROW(C13))),INDEX(Лист1!C$1:C$210,MATCH(ROW(L13),$J$1:$J$210,)+1)),\"\")","v":""},{"$f":"IFERROR(IF($G$1<>\"\",INDEX(Лист1!E$1:E$210,SMALL(IF(Лист1!$E$1:$E$210=$G$1,ROW(Лист1!D$1:D$210)),ROW(D13))),INDEX(Лист1!E$1:E$210,MATCH(ROW(M13),$J$1:$J$210,)+1)),\"\")","v":""},null,null,null,{"$f":"IFERROR(INDEX(Лист1!$E$2:$E$100,MATCH(1,INDEX((COUNTIF(I$1:I12,Лист1!$E$2:$E$100)=0)*(Лист1!$E$2:$E$100<>\"\"),0),0)),\"\")","v":""},{"$f":"SUBTOTAL(3,Лист1!$A$2:$A14)","v":4}]
["",{"$f":"IFERROR(IF($G$1<>\"\",INDEX(Лист1!A$1:A$210,SMALL(IF(Лист1!$E$1:$E$210=$G$1,ROW(Лист1!A$1:A$210)),ROW(A14))),INDEX(Лист1!A$1:A$210,MATCH(ROW(J14),$J$1:$J$210,)+1)),\"\")","v":""},{"$f":"IFERROR(IF($G$1<>\"\",INDEX(Лист1!B$1:B$210,SMALL(IF(Лист1!$E$1:$E$210=$G$1,ROW(Лист1!B$1:B$210)),ROW(B14))),INDEX(Лист1!B$1:B$210,MATCH(ROW(K14),$J$1:$J$210,)+1)),\"\")","v":""},{"$f":"IFERROR(IF($G$1<>\"\",INDEX(Лист1!C$1:C$210,SMALL(IF(Лист1!$E$1:$E$210=$G$1,ROW(Лист1!C$1:C$210)),ROW(C14))),INDEX(Лист1!C$1:C$210,MATCH(ROW(L14),$J$1:$J$210,)+1)),\"\")","v":""},{"$f":"IFERROR(IF($G$1<>\"\",INDEX(Лист1!E$1:E$210,SMALL(IF(Лист1!$E$1:$E$210=$G$1,ROW(Лист1!D$1:D$210)),ROW(D14))),INDEX(Лист1!E$1:E$210,MATCH(ROW(M14),$J$1:$J$210,)+1)),\"\")","v":""},null,null,null,{"$f":"IFERROR(INDEX(Лист1!$E$2:$E$100,MATCH(1,INDEX((COUNTIF(I$1:I13,Лист1!$E$2:$E$100)=0)*(Лист1!$E$2:$E$100<>\"\"),0),0)),\"\")","v":""},{"$f":"SUBTOTAL(3,Лист1!$A$2:$A15)","v":5}]
["",{"$f":"IFERROR(IF($G$1<>\"\",INDEX(Лист1!A$1:A$210,SMALL(IF(Лист1!$E$1:$E$210=$G$1,ROW(Лист1!A$1:A$210)),ROW(A15))),INDEX(Лист1!A$1:A$210,MATCH(ROW(J15),$J$1:$J$210,)+1)),\"\")","v":""},{"$f":"IFERROR(IF($G$1<>\"\",INDEX(Лист1!B$1:B$210,SMALL(IF(Лист1!$E$1:$E$210=$G$1,ROW(Лист1!B$1:B$210)),ROW(B15))),INDEX(Лист1!B$1:B$210,MATCH(ROW(K15),$J$1:$J$210,)+1)),\"\")","v":""},{"$f":"IFERROR(IF($G$1<>\"\",INDEX(Лист1!C$1:C$210,SMALL(IF(Лист1!$E$1:$E$210=$G$1,ROW(Лист1!C$1:C$210)),ROW(C15))),INDEX(Лист1!C$1:C$210,MATCH(ROW(L15),$J$1:$J$210,)+1)),\"\")","v":""},{"$f":"IFERROR(IF($G$1<>\"\",INDEX(Лист1!E$1:E$210,SMALL(IF(Лист1!$E$1:$E$210=$G$1,ROW(Лист1!D$1:D$210)),ROW(D15))),INDEX(Лист1!E$1:E$210,MATCH(ROW(M15),$J$1:$J$210,)+1)),\"\")","v":""},null,null,null,{"$f":"IFERROR(INDEX(Лист1!$E$2:$E$100,MATCH(1,INDEX((COUNTIF(I$1:I14,Лист1!$E$2:$E$100)=0)*(Лист1!$E$2:$E$100<>\"\"),0),0)),\"\")","v":""},{"$f":"SUBTOTAL(3,Лист1!$A$2:$A16)","v":5}]
["",{"$f":"IFERROR(IF($G$1<>\"\",INDEX(Лист1!A$1:A$210,SMALL(IF(Лист1!$E$1:$E$210=$G$1,ROW(Лист1!A$1:A$210)),ROW(A16))),INDEX(Лист1!A$1:A$210,MATCH(ROW(J16),$J$1:$J$210,)+1)),\"\")","v":""},{"$f":"IFERROR(IF($G$1<>\"\",INDEX(Лист1!B$1:B$210,SMALL(IF(Лист1!$E$1:$E$210=$G$1,ROW(Лист1!B$1:B$210)),ROW(B16))),INDEX(Лист1!B$1:B$210,MATCH(ROW(K16),$J$1:$J$210,)+1)),\"\")","v":""},{"$f":"IFERROR(IF($G$1<>\"\",INDEX(Лист1!C$1:C$210,SMALL(IF(Лист1!$E$1:$E$210=$G$1,ROW(Лист1!C$1:C$210)),ROW(C16))),INDEX(Лист1!C$1:C$210,MATCH(ROW(L16),$J$1:$J$210,)+1)),\"\")","v":""},{"$f":"IFERROR(IF($G$1<>\"\",INDEX(Лист1!E$1:E$210,SMALL(IF(Лист1!$E$1:$E$210=$G$1,ROW(Лист1!D$1:D$210)),ROW(D16))),INDEX(Лист1!E$1:E$210,MATCH(ROW(M16),$J$1:$J$210,)+1)),\"\")","v":""},null,null,null,{"$f":"IFERROR(INDEX(Лист1!$E$2:$E$100,MATCH(1,INDEX((COUNTIF(I$1:I15,Лист1!$E$2:$E$100)=0)*(Лист1!$E$2:$E$100<>\"\"),0),0)),\"\")","v":""},{"$f":"SUBTOTAL(3,Лист1!$A$2:$A17)","v":5}]
["",{"$f":"IFERROR(IF($G$1<>\"\",INDEX(Лист1!A$1:A$210,SMALL(IF(Лист1!$E$1:$E$210=$G$1,ROW(Лист1!A$1:A$210)),ROW(A17))),INDEX(Лист1!A$1:A$210,MATCH(ROW(J17),$J$1:$J$210,)+1)),\"\")","v":""},{"$f":"IFERROR(IF($G$1<>\"\",INDEX(Лист1!B$1:B$210,SMALL(IF(Лист1!$E$1:$E$210=$G$1,ROW(Лист1!B$1:B$210)),ROW(B17))),INDEX(Лист1!B$1:B$210,MATCH(ROW(K17),$J$1:$J$210,)+1)),\"\")","v":""},{"$f":"IFERROR(IF($G$1<>\"\",INDEX(Лист1!C$1:C$210,SMALL(IF(Лист1!$E$1:$E$210=$G$1,ROW(Лист1!C$1:C$210)),ROW(C17))),INDEX(Лист1!C$1:C$210,MATCH(ROW(L17),$J$1:$J$210,)+1)),\"\")","v":""},{"$f":"IFERROR(IF($G$1<>\"\",INDEX(Лист1!E$1:E$210,SMALL(IF(Лист1!$E$1:$E$210=$G$1,ROW(Лист1!D$1:D$210)),ROW(D17))),INDEX(Лист1!E$1:E$210,MATCH(ROW(M17),$J$1:$J$210,)+1)),\"\")","v":""},null,null,null,{"$f":"IFERROR(INDEX(Лист1!$E$2:$E$100,MATCH(1,INDEX((COUNTIF(I$1:I16,Лист1!$E$2:$E$100)=0)*(Лист1!$E$2:$E$100<>\"\"),0),0)),\"\")","v":""},{"$f":"SUBTOTAL(3,Лист1!$A$2:$A18)","v":5}]
["",{"$f":"IFERROR(IF($G$1<>\"\",INDEX(Лист1!A$1:A$210,SMALL(IF(Лист1!$E$1:$E$210=$G$1,ROW(Лист1!A$1:A$210)),ROW(A18))),INDEX(Лист1!A$1:A$210,MATCH(ROW(J18),$J$1:$J$210,)+1)),\"\")","v":""},{"$f":"IFERROR(IF($G$1<>\"\",INDEX(Лист1!B$1:B$210,SMALL(IF(Лист1!$E$1:$E$210=$G$1,ROW(Лист1!B$1:B$210)),ROW(B18))),INDEX(Лист1!B$1:B$210,MATCH(ROW(K18),$J$1:$J$210,)+1)),\"\")","v":""},{"$f":"IFERROR(IF($G$1<>\"\",INDEX(Лист1!C$1:C$210,SMALL(IF(Лист1!$E$1:$E$210=$G$1,ROW(Лист1!C$1:C$210)),ROW(C18))),INDEX(Лист1!C$1:C$210,MATCH(ROW(L18),$J$1:$J$210,)+1)),\"\")","v":""},{"$f":"IFERROR(IF($G$1<>\"\",INDEX(Лист1!E$1:E$210,SMALL(IF(Лист1!$E$1:$E$210=$G$1,ROW(Лист1!D$1:D$210)),ROW(D18))),INDEX(Лист1!E$1:E$210,MATCH(ROW(M18),$J$1:$J$210,)+1)),\"\")","v":""},null,null,null,{"$f":"IFERROR(INDEX(Лист1!$E$2:$E$100,MATCH(1,INDEX((COUNTIF(I$1:I17,Лист1!$E$2:$E$100)=0)*(Лист1!$E$2:$E$100<>\"\"),0),0)),\"\")","v":""},{"$f":"SUBTOTAL(3,Лист1!$A$2:$A19)","v":5}]
["",{"$f":"IFERROR(IF($G$1<>\"\",INDEX(Лист1!A$1:A$210,SMALL(IF(Лист1!$E$1:$E$210=$G$1,ROW(Лист1!A$1:A$210)),ROW(A19))),INDEX(Лист1!A$1:A$210,MATCH(ROW(J19),$J$1:$J$210,)+1)),\"\")","v":""},{"$f":"IFERROR(IF($G$1<>\"\",INDEX(Лист1!B$1:B$210,SMALL(IF(Лист1!$E$1:$E$210=$G$1,ROW(Лист1!B$1:B$210)),ROW(B19))),INDEX(Лист1!B$1:B$210,MATCH(ROW(K19),$J$1:$J$210,)+1)),\"\")","v":""},{"$f":"IFERROR(IF($G$1<>\"\",INDEX(Лист1!C$1:C$210,SMALL(IF(Лист1!$E$1:$E$210=$G$1,ROW(Лист1!C$1:C$210)),ROW(C19))),INDEX(Лист1!C$1:C$210,MATCH(ROW(L19),$J$1:$J$210,)+1)),\"\")","v":""},{"$f":"IFERROR(IF($G$1<>\"\",INDEX(Лист1!E$1:E$210,SMALL(IF(Лист1!$E$1:$E$210=$G$1,ROW(Лист1!D$1:D$210)),ROW(D19))),INDEX(Лист1!E$1:E$210,MATCH(ROW(M19),$J$1:$J$210,)+1)),\"\")","v":""},null,null,null,{"$f":"IFERROR(INDEX(Лист1!$E$2:$E$100,MATCH(1,INDEX((COUNTIF(I$1:I18,Лист1!$E$2:$E$100)=0)*(Лист1!$E$2:$E$100<>\"\"),0),0)),\"\")","v":""},{"$f":"SUBTOTAL(3,Лист1!$A$2:$A20)","v":5}]
["",{"$f":"IFERROR(IF($G$1<>\"\",INDEX(Лист1!A$1:A$210,SMALL(IF(Лист1!$E$1:$E$210=$G$1,ROW(Лист1!A$1:A$210)),ROW(A20))),INDEX(Лист1!A$1:A$210,MATCH(ROW(J20),$J$1:$J$210,)+1)),\"\")","v":""},{"$f":"IFERROR(IF($G$1<>\"\",INDEX(Лист1!B$1:B$210,SMALL(IF(Лист1!$E$1:$E$210=$G$1,ROW(Лист1!B$1:B$210)),ROW(B20))),INDEX(Лист1!B$1:B$210,MATCH(ROW(K20),$J$1:$J$210,)+1)),\"\")","v":""},{"$f":"IFERROR(IF($G$1<>\"\",INDEX(Лист1!C$1:C$210,SMALL(IF(Лист1!$E$1:$E$210=$G$1,ROW(Лист1!C$1:C$210)),ROW(C20))),INDEX(Лист1!C$1:C$210,MATCH(ROW(L20),$J$1:$J$210,)+1)),\"\")","v":""},{"$f":"IFERROR(IF($G$1<>\"\",INDEX(Лист1!E$1:E$210,SMALL(IF(Лист1!$E$1:$E$210=$G$1,ROW(Лист1!D$1:D$210)),ROW(D20))),INDEX(Лист1!E$1:E$210,MATCH(ROW(M20),$J$1:$J$210,)+1)),\"\")","v":""},null,null,null,{"$f":"IFERROR(INDEX(Лист1!$E$2:$E$100,MATCH(1,INDEX((COUNTIF(I$1:I19,Лист1!$E$2:$E$100)=0)*(Лист1!$E$2:$E$100<>\"\"),0),0)),\"\")","v":""},{"$f":"SUBTOTAL(3,Лист1!$A$2:$A21)","v":6}]
["",{"$f":"IFERROR(IF($G$1<>\"\",INDEX(Лист1!A$1:A$210,SMALL(IF(Лист1!$E$1:$E$210=$G$1,ROW(Лист1!A$1:A$210)),ROW(A21))),INDEX(Лист1!A$1:A$210,MATCH(ROW(J21),$J$1:$J$210,)+1)),\"\")","v":""},{"$f":"IFERROR(IF($G$1<>\"\",INDEX(Лист1!B$1:B$210,SMALL(IF(Лист1!$E$1:$E$210=$G$1,ROW(Лист1!B$1:B$210)),ROW(B21))),INDEX(Лист1!B$1:B$210,MATCH(ROW(K21),$J$1:$J$210,)+1)),\"\")","v":""},{"$f":"IFERROR(IF($G$1<>\"\",INDEX(Лист1!C$1:C$210,SMALL(IF(Лист1!$E$1:$E$210=$G$1,ROW(Лист1!C$1:C$210)),ROW(C21))),INDEX(Лист1!C$1:C$210,MATCH(ROW(L21),$J$1:$J$210,)+1)),\"\")","v":""},{"$f":"IFERROR(IF($G$1<>\"\",INDEX(Лист1!E$1:E$210,SMALL(IF(Лист1!$E$1:$E$210=$G$1,ROW(Лист1!D$1:D$210)),ROW(D21))),INDEX(Лист1!E$1:E$210,MATCH(ROW(M21),$J$1:$J$210,)+1)),\"\")","v":""},null,null,null,{"$f":"IFERROR(INDEX(Лист1!$E$2:$E$100,MATCH(1,INDEX((COUNTIF(I$1:I20,Лист1!$E$2:$E$100)=0)*(Лист1!$E$2:$E$100<>\"\"),0),0)),\"\")","v":""},{"$f":"SUBTOTAL(3,Лист1!$A$2:$A22)","v":6}]
["",{"$f":"IFERROR(IF($G$1<>\"\",INDEX(Лист1!A$1:A$210,SMALL(IF(Лист1!$E$1:$E$210=$G$1,ROW(Лист1!A$1:A$210)),ROW(A22))),INDEX(Лист1!A$1:A$210,MATCH(ROW(J22),$J$1:$J$210,)+1)),\"\")","v":""},{"$f":"IFERROR(IF($G$1<>\"\",INDEX(Лист1!B$1:B$210,SMALL(IF(Лист1!$E$1:$E$210=$G$1,ROW(Лист1!B$1:B$210)),ROW(B22))),INDEX(Лист1!B$1:B$210,MATCH(ROW(K22),$J$1:$J$210,)+1)),\"\")","v":""},{"$f":"IFERROR(IF($G$1<>\"\",INDEX(Лист1!C$1:C$210,SMALL(IF(Лист1!$E$1:$E$210=$G$1,ROW(Лист1!C$1:C$210)),ROW(C22))),INDEX(Лист1!C$1:C$210,MATCH(ROW(L22),$J$1:$J$210,)+1)),\"\")","v":""},{"$f":"IFERROR(IF($G$1<>\"\",INDEX(Лист1!E$1:E$210,SMALL(IF(Лист1!$E$1:$E$210=$G$1,ROW(Лист1!D$1:D$210)),ROW(D22))),INDEX(Лист1!E$1:E$210,MATCH(ROW(M22),$J$1:$J$210,)+1)),\"\")","v":""},null,null,null,{"$f":"IFERROR(INDEX(Лист1!$E$2:$E$100,MATCH(1,INDEX((COUNTIF(I$1:I21,Лист1!$E$2:$E$100)=0)*(Лист1!$E$2:$E$100<>\"\"),0),0)),\"\")","v":""},{"$f":"SUBTOTAL(3,Лист1!$A$2:$A23)","v":6}]
[{"$f":"IF(B23<>\"\",ROW()&\".\",\"\")","v":""},{"$f":"IFERROR(IF(#REF!<>\"\",INDEX(Лист1!A$1:A$210,SMALL(IF(Лист1!$E$1:$E$210=#REF!,ROW(Лист1!A$1:A$210)),ROW(A23))),INDEX(Лист1!A$1:A$210,MATCH(ROW(J23),$J$1:$J$210,)+1)),\"\")","v":""},{"$f":"IFERROR(IF(#REF!<>\"\",INDEX(Лист1!B$1:B$210,SMALL(IF(Лист1!$E$1:$E$210=#REF!,ROW(Лист1!B$1:B$210)),ROW(B23))),INDEX(Лист1!B$1:B$210,MATCH(ROW(K23),$J$1:$J$210,)+1)),\"\")","v":""},{"$f":"IFERROR(IF(#REF!<>\"\",INDEX(Лист1!C$1:C$210,SMALL(IF(Лист1!$E$1:$E$210=#REF!,ROW(Лист1!C$1:C$210)),ROW(C23))),INDEX(Лист1!C$1:C$210,MATCH(ROW(#REF!),$J$1:$J$210,)+1)),\"\")","v":""},{"$f":"IFERROR(IF(#REF!<>\"\",INDEX(Лист1!E$1:E$210,SMALL(IF(Лист1!$E$1:$E$210=#REF!,ROW(Лист1!D$1:D$210)),ROW(D23))),INDEX(Лист1!E$1:E$210,MATCH(ROW(#REF!),$J$1:$J$210,)+1)),\"\")","v":""},null,null,null,{"$f":"IFERROR(INDEX(Лист1!$E$2:$E$100,MATCH(1,INDEX((COUNTIF(I$1:I22,Лист1!$E$2:$E$100)=0)*(Лист1!$E$2:$E$100<>\"\"),0),0)),\"\")","v":""},{"$f":"SUBTOTAL(3,Лист1!$A$2:$A24)","v":7}]
[null,null,null,null,null,null,null,null,null,{"$f":"SUBTOTAL(3,Лист1!$A$2:$A25)","v":7}]
[null,null,null,null,null,null,null,null,null,{"$f":"SUBTOTAL(3,Лист1!$A$2:$A26)","v":7}]
[null,null,null,null,null,null,null,null,null,{"$f":"SUBTOTAL(3,Лист1!$A$2:$A27)","v":7}]
[null,null,null,null,null,null,null,null,null,{"$f":"SUBTOTAL(3,Лист1!$A$2:$A28)","v":7}]
[null,null,null,null,null,null,null,null,null,{"$f":"SUBTOTAL(3,Лист1!$A$2:$A29)","v":7}]
[null,null,null,null,null,null,null,null,null,{"$f":"SUBTOTAL(3,Лист1!$A$2:$A30)","v":7}]
[null,null,null,null,null,null,null,null,null,{"$f":"SUBTOTAL(3,Лист1!$A$2:$A31)","v":7}]
[null,null,null,null,null,null,null,null,null,{"$f":"SUBTOTAL(3,Лист1!$A$2:$A32)","v":7}]
[null,null,null,null,null,null,null,null,null,{"$f":"SUBTOTAL(3,Лист1!$A$2:$A33)","v":7}]
[null,null,null,null,null,null,null,null,null,{"$f":"SUBTOTAL(3,Лист1!$A$2:$A34)","v":7}]
[null,null,null,null,null,null,null,null,null,{"$f":"SUBTOTAL(3,Лист1!$A$2:$A35)","v":7}]
[null,null,null,null,null,null,null,null,null,{"$f":"SUBTOTAL(3,Лист1!$A$2:$A36)","v":7}]
[null,null,null,null,null,null,null,null,null,{"$f":"SUBTOTAL(3,Лист1!$A$2:$A37)","v":7}]
[null,null,null,null,null,null,null,null,null,{"$f":"SUBTOTAL(3,Лист1!$A$2:$A38)","v":7}]
[null,null,null,null,null,null,null,null,null,{"$f":"SUBTOTAL(3,Лист1!$A$2:$A39)","v":7}]
[null,null,null,null,null,null,null,null,null,{"$f":"SUBTOTAL(3,Лист1!$A$2:$A40)","v":7}]
[null,null,null,null,null,null,null,null,null,{"$f":"SUBTOTAL(3,Лист1!$A$2:$A41)","v":7}]
[null,null,null,null,null,null,null,null,null,{"$f":"SUBTOTAL(3,Лист1!$A$2:$A42)","v":7}]
[null,null,null,null,null,null,null,null,null,{"$f":"SUBTOTAL(3,Лист1!$A$2:$A43)","v":7}]
[null,null,null,null,null,null,null,null,null,{"$f":"SUBTOTAL(3,Лист1!$A$2:$A44)","v":7}]
[null,null,null,null,null,null,null,null,null,{"$f":"SUBTOTAL(3,Лист1!$A$2:$A45)","v":7}]
[null,null,null,null,null,null,null,null,null,{"$f":"SUBTOTAL(3,Лист1!$A$2:$A46)","v":7}]
[null,null,null,null,null,null,null,null,null,{"$f":"SUBTOTAL(3,Лист1!$A$2:$A47)","v":7}]
[null,null,null,null,null,null,null,null,null,{"$f":"SUBTOTAL(3,Лист1!$A$2:$A48)","v":7}]
[null,null,null,null,null,null,null,null,null,{"$f":"SUBTOTAL(3,Лист1!$A$2:$A49)","v":7}]
[null,null,null,null,null,null,null,null,null,{"$f":"SUBTOTAL(3,Лист1!$A$2:$A50)","v":7}]
[null,null,null,null,null,null,null,null,null,{"$f":"SUBTOTAL(3,Лист1!$A$2:$A51)","v":8}]
[null,null,null,null,null,null,null,null,null,{"$f":"SUBTOTAL(3,Лист1!$A$2:$A52)","v":8}]
[null,null,null,null,null,null,null,null,null,{"$f":"SUBTOTAL(3,Лист1!$A$2:$A53)","v":8}]
[null,null,null,null,null,null,null,null,null,{"$f":"SUBTOTAL(3,Лист1!$A$2:$A54)","v":8}]
[null,null,null,null,null,null,null,null,null,{"$f":"SUBTOTAL(3,Лист1!$A$2:$A55)","v":8}]
[null,null,null,null,null,null,null,null,null,{"$f":"SUBTOTAL(3,Лист1!$A$2:$A56)","v":8}]
[null,null,null,null,null,null,null,null,null,{"$f":"SUBTOTAL(3,Лист1!$A$2:$A57)","v":8}]
[null,null,null,null,null,null,null,null,null,{"$f":"SUBTOTAL(3,Лист1!$A$2:$A58)","v":8}]
[null,null,null,null,null,null,null,null,null,{"$f":"SUBTOTAL(3,Лист1!$A$2:$A59)","v":8}]
[null,null,null,null,null,null,null,null,null,{"$f":"SUBTOTAL(3,Лист1!$A$2:$A60)","v":8}]
[null,null,null,null,null,null,null,null,null,{"$f":"SUBTOTAL(3,Лист1!$A$2:$A61)","v":8}]
[null,null,null,null,null,null,null,null,null,{"$f":"SUBTOTAL(3,Лист1!$A$2:$A62)","v":8}]
[null,null,null,null,null,null,null,null,null,{"$f":"SUBTOTAL(3,Лист1!$A$2:$A63)","v":8}]
[null,null,null,null,null,null,null,null,null,{"$f":"SUBTOTAL(3,Лист1!$A$2:$A64)","v":8}]
[null,null,null,null,null,null,null,null,null,{"$f":"SUBTOTAL(3,Лист1!$A$2:$A65)","v":8}]
[null,null,null,null,null,null,null,null,null,{"$f":"SUBTOTAL(3,Лист1!$A$2:$A66)","v":8}]
[null,null,null,null,null,null,null,null,null,{"$f":"SUBTOTAL(3,Лист1!$A$2:$A67)","v":8}]
[null,null,null,null,null,null,null,null,null,{"$f":"SUBTOTAL(3,Лист1!$A$2:$A68)","v":8}]
[null,null,null,null,null,null,null,null,null,{"$f":"SUBTOTAL(3,Лист1!$A$2:$A69)","v":8}]
[null,null,null,null,null,null,null,null,null,{"$f":"SUBTOTAL(3,Лист1!$A$2:$A70)","v":8}]
[null,null,null,null,null,null,null,null,null,{"$f":"SUBTOTAL(3,Лист1!$A$2:$A71)","v":8}]
[null,null,null,null,null,null,null,null,null,{"$f":"SUBTOTAL(3,Лист1!$A$2:$A72)","v":8}]
[null,null,null,null,null,null,null,null,null,{"$f":"SUBTOTAL(3,Лист1!$A$2:$A73)","v":8}]
[null,null,null,null,null,null,null,null,null,{"$f":"SUBTOTAL(3,Лист1!$A$2:$A74)","v":8}]
[null,null,null,null,null,null,null,null,null,{"$f":"SUBTOTAL(3,Лист1!$A$2:$A75)","v":8}]
[null,null,null,null,null,null,null,null,null,{"$f":"SUBTOTAL(3,Лист1!$A$2:$A76)","v":8}]
[null,null,null,null,null,null,null,null,null,{"$f":"SUBTOTAL(3,Лист1!$A$2:$A77)","v":8}]
[null,null,null,null,null,null,null,null,null,{"$f":"SUBTOTAL(3,Лист1!$A$2:$A78)","v":8}]
[null,null,null,null,null,null,null,null,null,{"$f":"SUBTOTAL(3,Лист1!$A$2:$A79)","v":8}]
[null,null,null,null,null,null,null,null,null,{"$f":"SUBTOTAL(3,Лист1!$A$2:$A80)","v":8}]
[null,null,null,null,null,null,null,null,null,{"$f":"SUBTOTAL(3,Лист1!$A$2:$A81)","v":8}]
[null,null,null,null,null,null,null,null,null,{"$f":"SUBTOTAL(3,Лист1!$A$2:$A82)","v":8}]
[null,null,null,null,null,null,null,null,null,{"$f":"SUBTOTAL(3,Лист1!$A$2:$A83)","v":8}]
[null,null,null,null,null,null,null,null,null,{"$f":"SUBTOTAL(3,Лист1!$A$2:$A84)","v":8}]
[null,null,null,null,null,null,null,null,null,{"$f":"SUBTOTAL(3,Лист1!$A$2:$A85)","v":8}]
[null,null,null,null,null,null,null,null,null,{"$f":"SUBTOTAL(3,Лист1!$A$2:$A86)","v":8}]
[null,null,null,null,null,null,null,null,null,{"$f":"SUBTOTAL(3,Лист1!$A$2:$A87)","v":8}]
[null,null,null,null,null,null,null,null,null,{"$f":"SUBTOTAL(3,Лист1!$A$2:$A88)","v":8}]
[null,null,null,null,null,null,null,null,null,{"$f":"SUBTOTAL(3,Лист1!$A$2:$A89)","v":8}]
[null,null,null,null,null,null,null,null,null,{"$f":"SUBTOTAL(3,Лист1!$A$2:$A90)","v":8}]
[null,null,null,null,null,null,null,null,null,{"$f":"SUBTOTAL(3,Лист1!$A$2:$A91)","v":8}]
[null,null,null,null,null,null,null,null,null,{"$f":"SUBTOTAL(3,Лист1!$A$2:$A92)","v":8}]
[null,null,null,null,null,null,null,null,null,{"$f":"SUBTOTAL(3,Лист1!$A$2:$A93)","v":8}]
[null,null,null,null,null,null,null,null,null,{"$f":"SUBTOTAL(3,Лист1!$A$2:$A94)","v":8}]
[null,null,null,null,null,null,null,null,null,{"$f":"SUBTOTAL(3,Лист1!$A$2:$A95)","v":8}]
[null,null,null,null,null,null,null,null,null,{"$f":"SUBTOTAL(3,Лист1!$A$2:$A96)","v":8}]
[null,null,null,null,null,null,null,null,null,{"$f":"SUBTOTAL(3,Лист1!$A$2:$A97)","v":8}]
[null,null,null,null,null,null,null,null,null,{"$f":"SUBTOTAL(3,Лист1!$A$2:$A98)","v":8}]
[null,null,null,null,null,null,null,null,null,{"$f":"SUBTOTAL(3,Лист1!$A$2:$A99)","v":8}]
[null,null,null,null,null,null,null,null,null,{"$f":"SUBTOTAL(3,Лист1!$A$2:$A100)","v":8}]
[null,null,null,null,null,null,null,null,null,{"$f":"SUBTOTAL(3,Лист1!$A$2:$A101)","v":8}]
[null,null,null,null,null,null,null,null,null,{"$f":"SUBTOTAL(3,Лист1!$A$2:$A102)","v":8}]
[null,null,null,null,null,null,null,null,null,{"$f":"SUBTOTAL(3,Лист1!$A$2:$A103)","v":8}]
[null,null,null,null,null,null,null,null,null,{"$f":"SUBTOTAL(3,Лист1!$A$2:$A104)","v":8}]
[null,null,null,null,null,null,null,null,null,{"$f":"SUBTOTAL(3,Лист1!$A$2:$A105)","v":8}]
[null,null,null,null,null,null,null,null,null,{"$f":"SUBTOTAL(3,Лист1!$A$2:$A106)","v":8}]
[null,null,null,null,null,null,null,null,null,{"$f":"SUBTOTAL(3,Лист1!$A$2:$A107)","v":8}]
[null,null,null,null,null,null,null,null,null,{"$f":"SUBTOTAL(3,Лист1!$A$2:$A108)","v":8}]
[null,null,null,null,null,null,null,null,null,{"$f":"SUBTOTAL(3,Лист1!$A$2:$A109)","v":8}]
[null,null,null,null,null,null,null,null,null,{"$f":"SUBTOTAL(3,Лист1!$A$2:$A110)","v":8}]
[null,null,null,null,null,null,null,null,null,{"$f":"SUBTOTAL(3,Лист1!$A$2:$A111)","v":8}]
[null,null,null,null,null,null,null,null,null,{"$f":"SUBTOTAL(3,Лист1!$A$2:$A112)","v":8}]
[null,null,null,null,null,null,null,null,null,{"$f":"SUBTOTAL(3,Лист1!$A$2:$A113)","v":8}]
[null,null,null,null,null,null,null,null,null,{"$f":"SUBTOTAL(3,Лист1!$A$2:$A114)","v":8}]
[null,null,null,null,null,null,null,null,null,{"$f":"SUBTOTAL(3,Лист1!$A$2:$A115)","v":8}]
[null,null,null,null,null,null,null,null,null,{"$f":"SUBTOTAL(3,Лист1!$A$2:$A116)","v":8}]
[null,null,null,null,null,null,null,null,null,{"$f":"SUBTOTAL(3,Лист1!$A$2:$A117)","v":8}]
[null,null,null,null,null,null,null,null,null,{"$f":"SUBTOTAL(3,Лист1!$A$2:$A118)","v":8}]
[null,null,null,null,null,null,null,null,null,{"$f":"SUBTOTAL(3,Лист1!$A$2:$A119)","v":8}]
[null,null,null,null,null,null,null,null,null,{"$f":"SUBTOTAL(3,Лист1!$A$2:$A120)","v":8}]
[null,null,null,null,null,null,null,null,null,{"$f":"SUBTOTAL(3,Лист1!$A$2:$A121)","v":8}]
[null,null,null,null,null,null,null,null,null,{"$f":"SUBTOTAL(3,Лист1!$A$2:$A122)","v":8}]
[null,null,null,null,null,null,null,null,null,{"$f":"SUBTOTAL(3,Лист1!$A$2:$A123)","v":8}]
[null,null,null,null,null,null,null,null,null,{"$f":"SUBTOTAL(3,Лист1!$A$2:$A124)","v":8}]
[null,null,null,null,null,null,null,null,null,{"$f":"SUBTOTAL(3,Лист1!$A$2:$A125)","v":8}]
[null,null,null,null,null,null,null,null,null,{"$f":"SUBTOTAL(3,Лист1!$A$2:$A126)","v":8}]
[null,null,null,null,null,null,null,null,null,{"$f":"SUBTOTAL(3,Лист1!$A$2:$A127)","v":8}]
[null,null,null,null,null,null,null,null,null,{"$f":"SUBTOTAL(3,Лист1!$A$2:$A128)","v":8}]
[null,null,null,null,null,null,null,null,null,{"$f":"SUBTOTAL(3,Лист1!$A$2:$A129)","v":8}]
[null,null,null,null,null,null,null,null,null,{"$f":"SUBTOTAL(3,Лист1!$A$2:$A130)","v":8}]
[null,null,null,null,null,null,null,null,null,{"$f":"SUBTOTAL(3,Лист1!$A$2:$A131)","v":8}]
[null,null,null,null,null,null,null,null,null,{"$f":"SUBTOTAL(3,Лист1!$A$2:$A132)","v":8}]
[null,null,null,null,null,null,null,null,null,{"$f":"SUBTOTAL(3,Лист1!$A$2:$A133)","v":8}]
[null,null,null,null,null,null,null,null,null,{"$f":"SUBTOTAL(3,Лист1!$A$2:$A134)","v":8}]
[null,null,null,null,null,null,null,null,null,{"$f":"SUBTOTAL(3,Лист1!$A$2:$A135)","v":8}]
[null,null,null,null,null,null,null,null,null,{"$f":"SUBTOTAL(3,Лист1!$A$2:$A136)","v":8}]
[null,null,null,null,null,null,null,null,null,{"$f":"SUBTOTAL(3,Лист1!$A$2:$A137)","v":8}]
[null,null,null,null,null,null,null,null,null,{"$f":"SUBTOTAL(3,Лист1!$A$2:$A138)","v":8}]
[null,null,null,null,null,null,null,null,null,{"$f":"SUBTOTAL(3,Лист1!$A$2:$A139)","v":8}]
[null,null,null,null,null,null,null,null,null,{"$f":"SUBTOTAL(3,Лист1!$A$2:$A140)","v":8}]
[null,null,null,null,null,null,null,null,null,{"$f":"SUBTOTAL(3,Лист1!$A$2:$A141)","v":8}]
[null,null,null,null,null,null,null,null,null,{"$f":"SUBTOTAL(3,Лист1!$A$2:$A142)","v":8}]
[null,null,null,null,null,null,null,null,null,{"$f":"SUBTOTAL(3,Лист1!$A$2:$A143)","v":8}]
[null,null,null,null,null,null,null,null,null,{"$f":"SUBTOTAL(3,Лист1!$A$2:$A144)","v":8}]
[null,null,null,null,null,null,null,null,null,{"$f":"SUBTOTAL(3,Лист1!$A$2:$A145)","v":8}]
[null,null,null,null,null,null,null,null,null,{"$f":"SUBTOTAL(3,Лист1!$A$2:$A146)","v":8}]
[null,null,null,null,null,null,null,null,null,{"$f":"SUBTOTAL(3,Лист1!$A$2:$A147)","v":8}]
[null,null,null,null,null,null,null,null,null,{"$f":"SUBTOTAL(3,Лист1!$A$2:$A148)","v":8}]
[null,null,null,null,null,null,null,null,null,{"$f":"SUBTOTAL(3,Лист1!$A$2:$A149)","v":8}]
[null,null,null,null,null,null,null,null,null,{"$f":"SUBTOTAL(3,Лист1!$A$2:$A150)","v":8}]
[null,null,null,null,null,null,null,null,null,{"$f":"SUBTOTAL(3,Лист1!$A$2:$A151)","v":8}]
[null,null,null,null,null,null,null,null,null,{"$f":"SUBTOTAL(3,Лист1!$A$2:$A152)","v":8}]
[null,null,null,null,null,null,null,null,null,{"$f":"SUBTOTAL(3,Лист1!$A$2:$A153)","v":8}]
[null,null,null,null,null,null,null,null,null,{"$f":"SUBTOTAL(3,Лист1!$A$2:$A154)","v":8}]
[null,null,null,null,null,null,null,null,null,{"$f":"SUBTOTAL(3,Лист1!$A$2:$A155)","v":8}]
[null,null,null,null,null,null,null,null,null,{"$f":"SUBTOTAL(3,Лист1!$A$2:$A156)","v":8}]
[null,null,null,null,null,null,null,null,null,{"$f":"SUBTOTAL(3,Лист1!$A$2:$A157)","v":8}]
[null,null,null,null,null,null,null,null,null,{"$f":"SUBTOTAL(3,Лист1!$A$2:$A158)","v":8}]
[null,null,null,null,null,null,null,null,null,{"$f":"SUBTOTAL(3,Лист1!$A$2:$A159)","v":8}]
[null,null,null,null,null,null,null,null,null,{"$f":"SUBTOTAL(3,Лист1!$A$2:$A160)","v":8}]
[null,null,null,null,null,null,null,null,null,{"$f":"SUBTOTAL(3,Лист1!$A$2:$A161)","v":8}]
[null,null,null,null,null,null,null,null,null,{"$f":"SUBTOTAL(3,Лист1!$A$2:$A162)","v":8}]
[null,null,null,null,null,null,null,null,null,{"$f":"SUBTOTAL(3,Лист1!$A$2:$A163)","v":8}]
[null,null,null,null,null,null,null,null,null,{"$f":"SUBTOTAL(3,Лист1!$A$2:$A164)","v":8}]
[null,null,null,null,null,null,null,null,null,{"$f":"SUBTOTAL(3,Лист1!$A$2:$A165)","v":8}]
[null,null,null,null,null,null,null,null,null,{"$f":"SUBTOTAL(3,Лист1!$A$2:$A166)","v":8}]
[null,null,null,null,null,null,null,null,null,{"$f":"SUBTOTAL(3,Лист1!$A$2:$A167)","v":8}]
[null,null,null,null,null,null,null,null,null,{"$f":"SUBTOTAL(3,Лист1!$A$2:$A168)","v":8}]
[null,null,null,null,null,null,null,null,null,{"$f":"SUBTOTAL(3,Лист1!$A$2:$A169)","v":8}]
[null,null,null,null,null,null,null,null,null,{"$f":"SUBTOTAL(3,Лист1!$A$2:$A170)","v":8}]
[null,null,null,null,null,null,null,null,null,{"$f":"SUBTOTAL(3,Лист1!$A$2:$A171)","v":8}]
[null,null,null,null,null,null,null,null,null,{"$f":"SUBTOTAL(3,Лист1!$A$2:$A172)","v":8}]
[null,null,null,null,null,null,null,null,null,{"$f":"SUBTOTAL(3,Лист1!$A$2:$A173)","v":8}]
[null,null,null,null,null,null,null,null,null,{"$f":"SUBTOTAL(3,Лист1!$A$2:$A174)","v":8}]
[null,null,null,null,null,null,null,null,null,{"$f":"SUBTOTAL(3,Лист1!$A$2:$A175)","v":8}]
[null,null,null,null,null,null,null,null,null,{"$f":"SUBTOTAL(3,Лист1!$A$2:$A176)","v":8}]
[null,null,null,null,null,null,null,null,null,{"$f":"SUBTOTAL(3,Лист1!$A$2:$A177)","v":8}]
[null,null,null,null,null,null,null,null,null,{"$f":"SUBTOTAL(3,Лист1!$A$2:$A178)","v":8}]
[null,null,null,null,null,null,null,null,null,{"$f":"SUBTOTAL(3,Лист1!$A$2:$A179)","v":8}]
[null,null,null,null,null,null,null,null,null,{"$f":"SUBTOTAL(3,Лист1!$A$2:$A180)","v":8}]
[null,null,null,null,null,null,null,null,null,{"$f":"SUBTOTAL(3,Лист1!$A$2:$A181)","v":8}]
[null,null,null,null,null,null,null,null,null,{"$f":"SUBTOTAL(3,Лист1!$A$2:$A182)","v":8}]
[null,null,null,null,null,null,null,null,null,{"$f":"SUBTOTAL(3,Лист1!$A$2:$A183)","v":8}]
[null,null,null,null,null,null,null,null,null,{"$f":"SUBTOTAL(3,Лист1!$A$2:$A184)","v":8}]
[null,null,null,null,null,null,null,null,null,{"$f":"SUBTOTAL(3,Лист1!$A$2:$A185)","v":8}]
[null,null,null,null,null,null,null,null,null,{"$f":"SUBTOTAL(3,Лист1!$A$2:$A186)","v":8}]
[null,null,null,null,null,null,null,null,null,{"$f":"SUBTOTAL(3,Лист1!$A$2:$A187)","v":8}]
[null,null,null,null,null,null,null,null,null,{"$f":"SUBTOTAL(3,Лист1!$A$2:$A188)","v":8}]
[null,null,null,null,null,null,null,null,null,{"$f":"SUBTOTAL(3,Лист1!$A$2:$A189)","v":8}]
[null,null,null,null,null,null,null,null,null,{"$f":"SUBTOTAL(3,Лист1!$A$2:$A190)","v":8}]
[null,null,null,null,null,null,null,null,null,{"$f":"SUBTOTAL(3,Лист1!$A$2:$A191)","v":8}]
[null,null,null,null,null,null,null,null,null,{"$f":"SUBTOTAL(3,Лист1!$A$2:$A192)","v":8}]
[null,null,null,null,null,null,null,null,null,{"$f":"SUBTOTAL(3,Лист1!$A$2:$A193)","v":8}]
[null,null,null,null,null,null,null,null,null,{"$f":"SUBTOTAL(3,Лист1!$A$2:$A194)","v":8}]
[null,null,null,null,null,null,null,null,null,{"$f":"SUBTOTAL(3,Лист1!$A$2:$A195)","v":8}]
[null,null,null,null,null,null,null,null,null,{"$f":"SUBTOTAL(3,Лист1!$A$2:$A196)","v":8}]
[null,null,null,null,null,null,null,null,null,{"$f":"SUBTOTAL(3,Лист1!$A$2:$A197)","v":8}]
[null,null,null,null,null,null,null,null,null,{"$f":"SUBTOTAL(3,Лист1!$A$2:$A198)","v":8}]
[null,null,null,null,null,null,null,null,null,{"$f":"SUBTOTAL(3,Лист1!$A$2:$A199)","v":8}]
[null,null,null,null,null,null,null,null,null,{"$f":"SUBTOTAL(3,Лист1!$A$2:$A200)","v":8}]
[null,null,null,null,null,null,null,null,null,{"$f":"SUBTOTAL(3,Лист1!$A$2:$A201)","v":8}]
[null,null,null,null,null,null,null,null,null,{"$f":"SUBTOTAL(3,Лист1!$A$2:$A202)","v":8}]
[null,null,null,null,null,null,null,null,null,{"$f":"SUBTOTAL(3,Лист1!$A$2:$A203)","v":8}]
[null,null,null,null,null,null,null,null,null,{"$f":"SUBTOTAL(3,Лист1!$A$2:$A204)","v":8}]
[null,null,null,null,null,null,null,null,null,{"$f":"SUBTOTAL(3,Лист1!$A$2:$A205)","v":8}]
[null,null,null,null,null,null,null,null,null,{"$f":"SUBTOTAL(3,Лист1!$A$2:$A206)","v":8}]
[null,null,null,null,null,null,null,null,null,{"$f":"SUBTOTAL(3,Лист1!$A$2:$A207)","v":8}]
[null,null,null,null,null,null,null,null,null,{"$f":"SUBTOTAL(3,Лист1!$A$2:$A208)","v":8}]
[null,null,null,null,null,null,null,null,null,{"$f":"SUBTOTAL(3,Лист1!$A$2:$A209)","v":8}]
[null,null,null,null,null,null,null,null,null,{"$f":"SUBTOTAL(3,Лист1!$A$2:$A210)","v":8}]
[null,null,null,null,null,null,null,null,null,{"$f":"SUBTOTAL(3,Лист1!$A$2:$A211)","v":8}]
[null,null,null,null,null,null,null,null,null,{"$f":"SUBTOTAL(3,Лист1!$A$2:$A212)","v":8}]
[null,null,null,null,null,null,null,null,null,{"$f":"SUBTOTAL(3,Лист1!$A$2:$A213)","v":8}]
[null,null,null,null,null,null,null,null,null,{"$f":"SUBTOTAL(3,Лист1!$A$2:$A214)","v":8}]
[null,null,null,null,null,null,null,null,null,{"$f":"SUBTOTAL(3,Лист1!$A$2:$A215)","v":8}]
[null,null,null,null,null,null,null,null,null,{"$f":"SUBTOTAL(3,Лист1!$A$2:$A216)","v":8}]
[null,null,null,null,null,null,null,null,null,{"$f":"SUBTOTAL(3,Лист1!$A$2:$A217)","v":8}]
[null,null,null,null,null,null,null,null,null,{"$f":"SUBTOTAL(3,Лист1!$A$2:$A218)","v":8}]
[null,null,null,null,null,null,null,null,null,{"$f":"SUBTOTAL(3,Лист1!$A$2:$A219)","v":8}]
[null,null,null,null,null,null,null,null,null,{"$f":"SUBTOTAL(3,Лист1!$A$2:$A220)","v":8}]
[null,null,null,null,null,null,null,null,null,{"$f":"SUBTOTAL(3,Лист1!$A$2:$A221)","v":8}]
[null,null,null,null,null,null,null,null,null,{"$f":"SUBTOTAL(3,Лист1!$A$2:$A222)","v":8}]
[null,null,null,null,null,null,null,null,null,{"$f":"SUBTOTAL(3,Лист1!$A$2:$A223)","v":8}]
[null,null,null,null,null,null,null,null,null,{"$f":"SUBTOTAL(3,Лист1!$A$2:$A224)","v":8}]
[null,null,null,null,null,null,null,null,null,{"$f":"SUBTOTAL(3,Лист1!$A$2:$A225)","v":8}]
[null,null,null,null,null,null,null,null,null,{"$f":"SUBTOTAL(3,Лист1!$A$2:$A226)","v":8}]
[null,null,null,null,null,null,null,null,null,{"$f":"SUBTOTAL(3,Лист1!$A$2:$A227)","v":8}]
[null,null,null,null,null,null,null,null,null,{"$f":"SUBTOTAL(3,Лист1!$A$2:$A228)","v":8}]
[null,null,null,null,null,null,null,null,null,{"$f":"SUBTOTAL(3,Лист1!$A$2:$A229)","v":8}]
[null,null,null,null,null,null,null,null,null,{"$f":"SUBTOTAL(3,Лист1!$A$2:$A230)","v":8}]
[null,null,null,null,null,null,null,null,null,{"$f":"SUBTOTAL(3,Лист1!$A$2:$A231)","v":8}]
[null,null,null,null,null,null,null,null,null,{"$f":"SUBTOTAL(3,Лист1!$A$2:$A232)","v":8}]
[null,null,null,null,null,null,null,null,null,{"$f":"SUBTOTAL(3,Лист1!$A$2:$A233)","v":8}]
[null,null,null,null,null,null,null,null,null,{"$f":"SUBTOTAL(3,Лист1!$A$2:$A234)","v":8}]
[null,null,null,null,null,null,null,null,null,{"$f":"SUBTOTAL(3,Лист1!$A$2:$A235)","v":8}]
[null,null,null,null,null,null,null,null,null,{"$f":"SUBTOTAL(3,Лист1!$A$2:$A236)","v":8}]
[null,null,null,null,null,null,null,null,null,{"$f":"SUBTOTAL(3,Лист1!$A$2:$A237)","v":8}]
[null,null,null,null,null,null,null,null,null,{"$f":"SUBTOTAL(3,Лист1!$A$2:$A238)","v":8}]
[null,null,null,null,null,null,null,null,null,{"$f":"SUBTOTAL(3,Лист1!$A$2:$A239)","v":8}]
[null,null,null,null,null,null,null,null,null,{"$f":"SUBTOTAL(3,Лист1!$A$2:$A240)","v":8}]
[null,null,null,null,null,null,null,null,null,{"$f":"SUBTOTAL(3,Лист1!$A$2:$A241)","v":8}]
[null,null,null,null,null,null,null,null,null,{"$f":"SUBTOTAL(3,Лист1!$A$2:$A242)","v":8}]
[null,null,null,null,null,null,null,null,null,{"$f":"SUBTOTAL(3,Лист1!$A$2:$A243)","v":8}]
[null,null,null,null,null,null,null,null,null,{"$f":"SUBTOTAL(3,Лист1!$A$2:$A244)","v":8}]
[null,null,null,null,null,null,null,null,null,{"$f":"SUBTOTAL(3,Лист1!$A$2:$A245)","v":8}]
[null,null,null,null,null,null,null,null,null,{"$f":"SUBTOTAL(3,Лист1!$A$2:$A246)","v":8}]
[null,null,null,null,null,null,null,null,null,{"$f":"SUBTOTAL(3,Лист1!$A$2:$A247)","v":8}]
[null,null,null,null,null,null,null,null,null,{"$f":"SUBTOTAL(3,Лист1!$A$2:$A248)","v":8}]
[null,null,null,null,null,null,null,null,null,{"$f":"SUBTOTAL(3,Лист1!$A$2:$A249)","v":8}]
[null,null,null,null,null,null,null,null,null,{"$f":"SUBTOTAL(3,Лист1!$A$2:$A250)","v":8}]
[null,null,null,null,null,null,null,null,null,{"$f":"SUBTOTAL(3,Лист1!$A$2:$A251)","v":8}]
[null,null,null,null,null,null,null,null,null,{"$f":"SUBTOTAL(3,Лист1!$A$2:$A252)","v":8}]
[null,null,null,null,null,null,null,null,null,{"$f":"SUBTOTAL(3,Лист1!$A$2:$A253)","v":8}]
[null,null,null,null,null,null,null,null,null,{"$f":"SUBTOTAL(3,Лист1!$A$2:$A254)","v":8}]
[null,null,null,null,null,null,null,null,null,{"$f":"SUBTOTAL(3,Лист1!$A$2:$A255)","v":8}]
[null,null,null,null,null,null,null,null,null,{"$f":"SUBTOTAL(3,Лист1!$A$2:$A256)","v":8}]
[null,null,null,null,null,null,null,null,null,{"$f":"SUBTOTAL(3,Лист1!$A$2:$A257)","v":8}]
[null,null,null,null,null,null,null,null,null,{"$f":"SUBTOTAL(3,Лист1!$A$2:$A258)","v":8}]
[null,null,null,null,null,null,null,null,null,{"$f":"SUBTOTAL(3,Лист1!$A$2:$A259)","v":8}]
[null,null,null,null,null,null,null,null,null,{"$f":"SUBTOTAL(3,Лист1!$A$2:$A260)","v":8}]
[null,null,null,null,null,null,null,null,null,{"$f":"SUBTOTAL(3,Лист1!$A$2:$A261)","v":8}]
[null,null,null,null,null,null,null,null,null,{"$f":"SUBTOTAL(3,Лист1!$A$2:$A262)","v":8}]
[null,null,null,null,null,null,null,null,null,{"$f":"SUBTOTAL(3,Лист1!$A$2:$A263)","v":8}]
[null,null,null,null,null,null,null,null,null,{"$f":"SUBTOTAL(3,Лист1!$A$2:$A264)","v":8}]
[null,null,null,null,null,null,null,null,null,{"$f":"SUBTOTAL(3,Лист1!$A$2:$A265)","v":8}]
[null,null,null,null,null,null,null,null,null,{"$f":"SUBTOTAL(3,Лист1!$A$2:$A266)","v":8}]
[null,null,null,null,null,null,null,null,null,{"$f":"SUBTOTAL(3,Лист1!$A$2:$A267)","v":8}]
[null,null,null,null,null,null,null,null,null,{"$f":"SUBTOTAL(3,Лист1!$A$2:$A268)","v":8}]
[null,null,null,null,null,null,null,null,null,{"$f":"SUBTOTAL(3,Лист1!$A$2:$A269)","v":8}]
[null,null,null,null,null,null,null,null,null,{"$f":"SUBTOTAL(3,Лист1!$A$2:$A270)","v":8}]
[null,null,null,null,null,null,null,null,null,{"$f":"SUBTOTAL(3,Лист1!$A$2:$A271)","v":8}]
[null,null,null,null,null,null,null,null,null,{"$f":"SUBTOTAL(3,Лист1!$A$2:$A272)","v":8}]
[null,null,null,null,null,null,null,null,null,{"$f":"SUBTOTAL(3,Лист1!$A$2:$A273)","v":8}]
[null,null,null,null,null,null,null,null,null,{"$f":"SUBTOTAL(3,Лист1!$A$2:$A274)","v":8}]
[null,null,null,null,null,null,null,null,null,{"$f":"SUBTOTAL(3,Лист1!$A$2:$A275)","v":8}]
[null,null,null,null,null,null,null,null,null,{"$f":"SUBTOTAL(3,Лист1!$A$2:$A276)","v":8}]
[null,null,null,null,null,null,null,null,null,{"$f":"SUBTOTAL(3,Лист1!$A$2:$A277)","v":8}]
[null,null,null,null,null,null,null,null,null,{"$f":"SUBTOTAL(3,Лист1!$A$2:$A278)","v":8}]
[null,null,null,null,null,null,null,null,null,{"$f":"SUBTOTAL(3,Лист1!$A$2:$A279)","v":8}]
[null,null,null,null,null,null,null,null,null,{"$f":"SUBTOTAL(3,Лист1!$A$2:$A280)","v":8}]
[null,null,null,null,null,null,null,null,null,{"$f":"SUBTOTAL(3,Лист1!$A$2:$A281)","v":8}]
[null,null,null,null,null,null,null,null,null,{"$f":"SUBTOTAL(3,Лист1!$A$2:$A282)","v":8}]
[null,null,null,null,null,null,null,null,null,{"$f":"SUBTOTAL(3,Лист1!$A$2:$A283)","v":8}]
[null,null,null,null,null,null,null,null,null,{"$f":"SUBTOTAL(3,Лист1!$A$2:$A284)","v":8}]
[null,null,null,null,null,null,null,null,null,{"$f":"SUBTOTAL(3,Лист1!$A$2:$A285)","v":8}]
[null,null,null,null,null,null,null,null,null,{"$f":"SUBTOTAL(3,Лист1!$A$2:$A286)","v":8}]
[null,null,null,null,null,null,null,null,null,{"$f":"SUBTOTAL(3,Лист1!$A$2:$A287)","v":8}]
[null,null,null,null,null,null,null,null,null,{"$f":"SUBTOTAL(3,Лист1!$A$2:$A288)","v":8}]
[null,null,null,null,null,null,null,null,null,{"$f":"SUBTOTAL(3,Лист1!$A$2:$A289)","v":8}]
[null,null,null,null,null,null,null,null,null,{"$f":"SUBTOTAL(3,Лист1!$A$2:$A290)","v":8}]
[null,null,null,null,null,null,null,null,null,{"$f":"SUBTOTAL(3,Лист1!$A$2:$A291)","v":8}]
[null,null,null,null,null,null,null,null,null,{"$f":"SUBTOTAL(3,Лист1!$A$2:$A292)","v":8}]
[null,null,null,null,null,null,null,null,null,{"$f":"SUBTOTAL(3,Лист1!$A$2:$A293)","v":8}]
[null,null,null,null,null,null,null,null,null,{"$f":"SUBTOTAL(3,Лист1!$A$2:$A294)","v":8}]
[null,null,null,null,null,null,null,null,null,{"$f":"SUBTOTAL(3,Лист1!$A$2:$A295)","v":8}]
[null,null,null,null,null,null,null,null,null,{"$f":"SUBTOTAL(3,Лист1!$A$2:$A296)","v":8}]
[null,null,null,null,null,null,null,null,null,{"$f":"SUBTOTAL(3,Лист1!$A$2:$A297)","v":8}]
[null,null,null,null,null,null,null,null,null,{"$f":"SUBTOTAL(3,Лист1!$A$2:$A298)","v":8}]
[null,null,null,null,null,null,null,null,null,{"$f":"SUBTOTAL(3,Лист1!$A$2:$A299)","v":8}]
[null,null,null,null,null,null,null,null,null,{"$f":"SUBTOTAL(3,Лист1!$A$2:$A300)","v":8}]
[null,null,null,null,null,null,null,null,null,{"$f":"SUBTOTAL(3,Лист1!$A$2:$A301)","v":8}]
[null,null,null,null,null,null,null,null,null,{"$f":"SUBTOTAL(3,Лист1!$A$2:$A302)","v":8}]
[null,null,null,null,null,null,null,null,null,{"$f":"SUBTOTAL(3,Лист1!$A$2:$A303)","v":8}]
[null,null,null,null,null,null,null,null,null,{"$f":"SUBTOTAL(3,Лист1!$A$2:$A304)","v":8}]
[null,null,null,null,null,null,null,null,null,{"$f":"SUBTOTAL(3,Лист1!$A$2:$A305)","v":8}]
[null,null,null,null,null,null,null,null,null,{"$f":"SUBTOTAL(3,Лист1!$A$2:$A306)","v":8}]
[null,null,null,null,null,null,null,null,null,{"$f":"SUBTOTAL(3,Лист1!$A$2:$A307)","v":8}]
[null,null,null,null,null,null,null,null,null,{"$f":"SUBTOTAL(3,Лист1!$A$2:$A308)","v":8}]
[null,null,null,null,null,null,null,null,null,{"$f":"SUBTOTAL(3,Лист1!$A$2:$A309)","v":8}]
[null,null,null,null,null,null,null,null,null,{"$f":"SUBTOTAL(3,Лист1!$A$2:$A310)","v":8}]
[null,null,null,null,null,null,null,null,null,{"$f":"SUBTOTAL(3,Лист1!$A$2:$A311)","v":8}]
[null,null,null,null,null,null,null,null,null,{"$f":"SUBTOTAL(3,Лист1!$A$2:$A312)","v":8}]
[null,null,null,null,null,null,null,null,null,{"$f":"SUBTOTAL(3,Лист1!$A$2:$A313)","v":8}]
[null,null,null,null,null,null,null,null,null,{"$f":"SUBTOTAL(3,Лист1!$A$2:$A314)","v":8}]
[null,null,null,null,null,null,null,null,null,{"$f":"SUBTOTAL(3,Лист1!$A$2:$A315)","v":8}]
[null,null,null,null,null,null,null,null,null,{"$f":"SUBTOTAL(3,Лист1!$A$2:$A316)","v":8}]
[null,null,null,null,null,null,null,null,null,{"$f":"SUBTOTAL(3,Лист1!$A$2:$A317)","v":8}]
[null,null,null,null,null,null,null,null,null,{"$f":"SUBTOTAL(3,Лист1!$A$2:$A318)","v":8}]
[null,null,null,null,null,null,null,null,null,{"$f":"SUBTOTAL(3,Лист1!$A$2:$A319)","v":8}]
[null,null,null,null,null,null,null,null,null,{"$f":"SUBTOTAL(3,Лист1!$A$2:$A320)","v":8}]
[null,null,null,null,null,null,null,null,null,{"$f":"SUBTOTAL(3,Лист1!$A$2:$A321)","v":8}]
[null,null,null,null,null,null,null,null,null,{"$f":"SUBTOTAL(3,Лист1!$A$2:$A322)","v":8}]
[null,null,null,null,null,null,null,null,null,{"$f":"SUBTOTAL(3,Лист1!$A$2:$A323)","v":8}]
[null,null,null,null,null,null,null,null,null,{"$f":"SUBTOTAL(3,Лист1!$A$2:$A324)","v":8}]
[null,null,null,null,null,null,null,null,null,{"$f":"SUBTOTAL(3,Лист1!$A$2:$A325)","v":8}]
[null,null,null,null,null,null,null,null,null,{"$f":"SUBTOTAL(3,Лист1!$A$2:$A326)","v":8}]
[null,null,null,null,null,null,null,null,null,{"$f":"SUBTOTAL(3,Лист1!$A$2:$A327)","v":8}]
[null,null,null,null,null,null,null,null,null,{"$f":"SUBTOTAL(3,Лист1!$A$2:$A328)","v":8}]
[null,null,null,null,null,null,null,null,null,{"$f":"SUBTOTAL(3,Лист1!$A$2:$A329)","v":8}]
[null,null,null,null,null,null,null,null,null,{"$f":"SUBTOTAL(3,Лист1!$A$2:$A330)","v":8}]
[null,null,null,null,null,null,null,null,null,{"$f":"SUBTOTAL(3,Лист1!$A$2:$A331)","v":8}]
[null,null,null,null,null,null,null,null,null,{"$f":"SUBTOTAL(3,Лист1!$A$2:$A332)","v":8}]
[null,null,null,null,null,null,null,null,null,{"$f":"SUBTOTAL(3,Лист1!$A$2:$A333)","v":8}]
[null,null,null,null,null,null,null,null,null,{"$f":"SUBTOTAL(3,Лист1!$A$2:$A334)","v":8}]
[null,null,null,null,null,null,null,null,null,{"$f":"SUBTOTAL(3,Лист1!$A$2:$A335)","v":8}]
[null,null,null,null,null,null,null,null,null,{"$f":"SUBTOTAL(3,Лист1!$A$2:$A336)","v":8}]
[null,null,null,null,null,null,null,null,null,{"$f":"SUBTOTAL(3,Лист1!$A$2:$A337)","v":8}]
[null,null,null,null,null,null,null,null,null,{"$f":"SUBTOTAL(3,Лист1!$A$2:$A338)","v":8}]
[null,null,null,null,null,null,null,null,null,{"$f":"SUBTOTAL(3,Лист1!$A$2:$A339)","v":8}]
[null,null,null,null,null,null,null,null,null,{"$f":"SUBTOTAL(3,Лист1!$A$2:$A340)","v":8}]
[null,null,null,null,null,null,null,null,null,{"$f":"SUBTOTAL(3,Лист1!$A$2:$A341)","v":8}]
[null,null,null,null,null,null,null,null,null,{"$f":"SUBTOTAL(3,Лист1!$A$2:$A342)","v":8}]
[null,null,null,null,null,null,null,null,null,{"$f":"SUBTOTAL(3,Лист1!$A$2:$A343)","v":8}]
[null,null,null,null,null,null,null,null,null,{"$f":"SUBTOTAL(3,Лист1!$A$2:$A344)","v":8}]
[null,null,null,null,null,null,null,null,null,{"$f":"SUBTOTAL(3,Лист1!$A$2:$A345)","v":8}]
[null,null,null,null,null,null,null,null,null,{"$f":"SUBTOTAL(3,Лист1!$A$2:$A346)","v":8}]
[null,null,null,null,null,null,null,null,null,{"$f":"SUBTOTAL(3,Лист1!$A$2:$A347)","v":8}]
[null,null,null,null,null,null,null,null,null,{"$f":"SUBTOTAL(3,Лист1!$A$2:$A348)","v":8}]
[null,null,null,null,null,null,null,null,null,{"$f":"SUBTOTAL(3,Лист1!$A$2:$A349)","v":8}]
[null,null,null,null,null,null,null,null,null,{"$f":"SUBTOTAL(3,Лист1!$A$2:$A350)","v":8}]
[null,null,null,null,null,null,null,null,null,{"$f":"SUBTOTAL(3,Лист1!$A$2:$A351)","v":8}]
[null,null,null,null,null,null,null,null,null,{"$f":"SUBTOTAL(3,Лист1!$A$2:$A352)","v":8}]
[null,null,null,null,null,null,null,null,null,{"$f":"SUBTOTAL(3,Лист1!$A$2:$A353)","v":8}]
[null,null,null,null,null,null,null,null,null,{"$f":"SUBTOTAL(3,Лист1!$A$2:$A354)","v":8}]
[null,null,null,null,null,null,null,null,null,{"$f":"SUBTOTAL(3,Лист1!$A$2:$A355)","v":8}]
[null,null,null,null,null,null,null,null,null,{"$f":"SUBTOTAL(3,Лист1!$A$2:$A356)","v":8}]
[null,null,null,null,null,null,null,null,null,{"$f":"SUBTOTAL(3,Лист1!$A$2:$A357)","v":8}]
[null,null,null,null,null,null,null,null,null,{"$f":"SUBTOTAL(3,Лист1!$A$2:$A358)","v":8}]
[null,null,null,null,null,null,null,null,null,{"$f":"SUBTOTAL(3,Лист1!$A$2:$A359)","v":8}]
[null,null,null,null,null,null,null,null,null,{"$f":"SUBTOTAL(3,Лист1!$A$2:$A360)","v":8}]
[null,null,null,null,null,null,null,null,null,{"$f":"SUBTOTAL(3,Лист1!$A$2:$A361)","v":8}]
[null,null,null,null,null,null,null,null,null,{"$f":"SUBTOTAL(3,Лист1!$A$2:$A362)","v":8}]
[null,null,null,null,null,null,null,null,null,{"$f":"SUBTOTAL(3,Лист1!$A$2:$A363)","v":8}]
[null,null,null,null,null,null,null,null,null,{"$f":"SUBTOTAL(3,Лист1!$A$2:$A364)","v":8}]
[null,null,null,null,null,null,null,null,null,{"$f":"SUBTOTAL(3,Лист1!$A$2:$A365)","v":8}]
[null,null,null,null,null,null,null,null,null,{"$f":"SUBTOTAL(3,Лист1!$A$2:$A366)","v":8}]
[null,null,null,null,null,null,null,null,null,{"$f":"SUBTOTAL(3,Лист1!$A$2:$A367)","v":8}]
[null,null,null,null,null,null,null,null,null,{"$f":"SUBTOTAL(3,Лист1!$A$2:$A368)","v":8}]
[null,null,null,null,null,null,null,null,null,{"$f":"SUBTOTAL(3,Лист1!$A$2:$A369)","v":8}]
[null,null,null,null,null,null,null,null,null,{"$f":"SUBTOTAL(3,Лист1!$A$2:$A370)","v":8}]
[null,null,null,null,null,null,null,null,null,{"$f":"SUBTOTAL(3,Лист1!$A$2:$A371)","v":8}]
[null,null,null,null,null,null,null,null,null,{"$f":"SUBTOTAL(3,Лист1!$A$2:$A372)","v":8}]
[null,null,null,null,null,null,null,null,null,{"$f":"SUBTOTAL(3,Лист1!$A$2:$A373)","v":8}]
[null,null,null,null,null,null,null,null,null,{"$f":"SUBTOTAL(3,Лист1!$A$2:$A374)","v":8}]
[null,null,null,null,null,null,null,null,null,{"$f":"SUBTOTAL(3,Лист1!$A$2:$A375)","v":8}]
[null,null,null,null,null,null,null,null,null,{"$f":"SUBTOTAL(3,Лист1!$A$2:$A376)","v":8}]
[null,null,null,null,null,null,null,null,null,{"$f":"SUBTOTAL(3,Лист1!$A$2:$A377)","v":8}]
[null,null,null,null,null,null,null,null,null,{"$f":"SUBTOTAL(3,Лист1!$A$2:$A378)","v":8}]
[null,null,null,null,null,null,null,null,null,{"$f":"SUBTOTAL(3,Лист1!$A$2:$A379)","v":8}]
[null,null,null,null,null,null,null,null,null,{"$f":"SUBTOTAL(3,Лист1!$A$2:$A380)","v":8}]
[null,null,null,null,null,null,null,null,null,{"$f":"SUBTOTAL(3,Лист1!$A$2:$A381)","v":8}]
[null,null,null,null,null,null,null,null,null,{"$f":"SUBTOTAL(3,Лист1!$A$2:$A382)","v":8}]
[null,null,null,null,null,null,null,null,null,{"$f":"SUBTOTAL(3,Лист1!$A$2:$A383)","v":8}]
[null,null,null,null,null,null,null,null,null,{"$f":"SUBTOTAL(3,Лист1!$A$2:$A384)","v":8}]
[null,null,null,null,null,null,null,null,null,{"$f":"SUBTOTAL(3,Лист1!$A$2:$A385)","v":8}]
[null,null,null,null,null,null,null,null,null,{"$f":"SUBTOTAL(3,Лист1!$A$2:$A386)","v":8}]
[null,null,null,null,null,null,null,null,null,{"$f":"SUBTOTAL(3,Лист1!$A$2:$A387)","v":8}]
[null,null,null,null,null,null,null,null,null,{"$f":"SUBTOTAL(3,Лист1!$A$2:$A388)","v":8}]
[null,null,null,null,null,null,null,null,null,{"$f":"SUBTOTAL(3,Лист1!$A$2:$A389)","v":8}]
[null,null,null,null,null,null,null,null,null,{"$f":"SUBTOTAL(3,Лист1!$A$2:$A390)","v":8}]
[null,null,null,null,null,null,null,null,null,{"$f":"SUBTOTAL(3,Лист1!$A$2:$A391)","v":8}]
[null,null,null,null,null,null,null,null,null,{"$f":"SUBTOTAL(3,Лист1!$A$2:$A392)","v":8}]
[null,null,null,null,null,null,null,null,null,{"$f":"SUBTOTAL(3,Лист1!$A$2:$A393)","v":8}]
[null,null,null,null,null,null,null,null,null,{"$f":"SUBTOTAL(3,Лист1!$A$2:$A394)","v":8}]
[null,null,null,null,null,null,null,null,null,{"$f":"SUBTOTAL(3,Лист1!$A$2:$A395)","v":8}]
[null,null,null,null,null,null,null,null,null,{"$f":"SUBTOTAL(3,Лист1!$A$2:$A396)","v":8}]
[null,null,null,null,null,null,null,null,null,{"$f":"SUBTOTAL(3,Лист1!$A$2:$A397)","v":8}]
[null,null,null,null,null,null,null,null,null,{"$f":"SUBTOTAL(3,Лист1!$A$2:$A398)","v":8}]
[null,null,null,null,null,null,null,null,null,{"$f":"SUBTOTAL(3,Лист1!$A$2:$A399)","v":8}]
[null,null,null,null,null,null,null,null,null,{"$f":"SUBTOTAL(3,Лист1!$A$2:$A400)","v":8}]
[null,null,null,null,null,null,null,null,null,{"$f":"SUBTOTAL(3,Лист1!$A$2:$A401)","v":8}]
[null,null,null,null,null,null,null,null,null,{"$f":"SUBTOTAL(3,Лист1!$A$2:$A402)","v":8}]
[null,null,null,null,null,null,null,null,null,{"$f":"SUBTOTAL(3,Лист1!$A$2:$A403)","v":8}]
[null,null,null,null,null,null,null,null,null,{"$f":"SUBTOTAL(3,Лист1!$A$2:$A404)","v":8}]
[null,null,null,null,null,null,null,null,null,{"$f":"SUBTOTAL(3,Лист1!$A$2:$A405)","v":8}]
[null,null,null,null,null,null,null,null,null,{"$f":"SUBTOTAL(3,Лист1!$A$2:$A406)","v":8}]
[null,null,null,null,null,null,null,null,null,{"$f":"SUBTOTAL(3,Лист1!$A$2:$A407)","v":8}]
[null,null,null,null,null,null,null,null,null,{"$f":"SUBTOTAL(3,Лист1!$A$2:$A408)","v":8}]